bitfinex/quotes_SOLUSD_20250602
["timestamp","ask_amount","ask_price","bid_price","bid_amount"]
[1748841505839,39.1,156.03,156.0,14.43531552]
[1748841506044,53.53531552,156.03,155.99,20.84584873]
[1748841506514,14.43531552,156.02,155.97,16.03891552]
[1748841506937,14.43531552,156.01,155.97,14.43531552]
[1748841507144,10.1,156.0,155.97,14.43531552]
[1748841507457,39.1,155.99,155.97,14.43531552]
[1748841507642,39.1,155.99,155.96,14.43531552]
[1748841507818,39.1,155.99,155.97,14.43531552]
[1748841515359,39.1,155.99,155.96,20.84705916]
[1748841516452,53.53531552,155.99,155.95,6.41216635]
[1748841516764,14.43531552,155.98,155.94,20.84788918]
[1748841518137,53.53531552,155.99,155.94,20.84788918]
[1748841519453,14.43531552,155.98,155.94,20.84788918]
[1748841520143,14.43531552,155.98,155.94,14.43531552]
[1748841520944,14.43531552,155.98,155.94,20.84803034]
[1748841521550,163.33531552,155.98,155.94,14.43531552]
[1748841524334,169.74641457,155.98,155.94,14.43531552]
[1748841525761,14.43531552,155.96,155.91,6.41395676]
[1748841525962,49.2,155.95,155.92,14.43531552]
[1748841526466,49.2,155.95,155.93,14.43531552]
[1748841528540,49.2,155.95,155.93,20.84835438]
[1748841528954,14.43531552,155.94,155.9,8.06500477]
[1748841529157,14.43531552,155.94,155.86,1.5889]
[1748841529158,14.43531552,155.91,155.86,1.5889]
[1748841529358,49.2,155.9,155.86,1.5889]
[1748841529554,49.2,155.9,155.89,14.43531552]
[1748841529555,39.1,155.9,155.89,14.43531552]
[1748841530066,39.1,155.9,155.86,1.5889]
[1748841530268,39.1,155.9,155.89,14.43531552]
[1748841530956,39.1,155.9,155.87,22.4546096]
[1748841531161,39.1,155.9,155.89,14.43531552]
[1748841532380,39.1,155.9,155.89,20.85009517]
[1748841532869,10.1,155.92,155.89,20.85009517]
[1748841532870,49.22,155.92,155.89,20.85009517]
[1748841533059,49.22,155.92,155.91,14.43531552]
[1748841535586,49.22,155.92,155.9,6.4141194]
[1748841535761,49.22,155.92,155.89,20.8500482]
[1748841535970,63.65531552,155.92,155.89,6.41473268]
[1748841536159,63.65531552,155.92,155.88,20.85042631]
[1748841536358,63.65531552,155.92,155.88,14.43531552]
[1748841536570,14.43531552,155.91,155.87,14.43531552]
[1748841537074,14.43531552,155.9,155.85,14.43531552]
[1748841537272,14.43531552,155.88,155.84,20.85179794]
[1748841537653,53.55531552,155.89,155.85,14.43531552]
[1748841538271,39.12,155.89,155.86,14.43531552]
[1748841538779,53.55531552,155.89,155.85,14.43531552]
[1748841540595,14.43531552,155.87,155.83,14.43531552]
[1748841540757,53.55531552,155.86,155.83,6.41724956]
[1748841541157,39.12,155.86,155.83,20.85256508]
[1748841541559,39.12,155.86,155.85,14.43531552]
[1748841542588,39.12,155.86,155.85,20.85174157]
[1748841543283,39.12,155.86,155.85,14.43531552]
[1748841544893,39.12,155.86,155.83,20.85256508]
[1748841545578,39.12,155.86,155.85,14.43531552]
[1748841546995,39.12,155.86,155.84,14.43531552]
[1748841547373,39.12,155.86,155.83,20.85256508]
[1748841548189,39.12,155.86,155.83,6.41724956]
[1748841548379,39.12,155.86,155.83,20.85256508]
[1748841548690,14.43531552,155.85,155.78,17.59411183]
[1748841548897,14.43531552,155.82,155.77,14.43531552]
[1748841549198,63.65531552,155.81,155.77,14.43531552]
[1748841549387,63.65531552,155.81,155.75,6.42054574]
[1748841549388,14.43531552,155.79,155.75,6.42054574]
[1748841549698,39.12,155.78,155.75,20.85586126]
[1748841550070,39.12,155.78,155.75,6.42054574]
[1748841550473,39.12,155.78,155.75,20.85586126]
[1748841551071,53.55531552,155.78,155.74,1.6349]
[1748841551396,53.55531552,155.78,155.74,22.49116208]
[1748841551577,14.43531552,155.77,155.74,8.05584656]
[1748841551784,39.12,155.78,155.74,22.49116208]
[1748841551785,10.1,155.76,155.74,22.49116208]
[1748841553409,10.1,155.76,155.74,20.85626208]
[1748841554684,14.43531552,155.75,155.71,6.4221951]
[1748841554872,53.57531552,155.74,155.71,6.4221951]
[1748841555199,39.14,155.74,155.71,20.85751062]
[1748841555693,39.14,155.74,155.72,14.43531552]
[1748841556394,39.14,155.74,155.72,20.85683865]
[1748841556700,39.14,155.74,155.72,6.42152313]
[1748841557199,39.14,155.74,155.72,20.85683865]
[1748841558006,39.14,155.74,155.73,14.43531552]
[1748841558695,10.1,155.76,155.73,14.43531552]
[1748841559000,39.14,155.75,155.72,6.42152313]
[1748841559202,39.14,155.75,155.74,14.43531552]
[1748841559810,39.14,155.75,155.74,6.420958]
[1748841560102,39.14,155.75,155.74,20.85627352]
[1748841563481,39.14,155.75,155.72,14.43531552]
[1748841563677,53.57531552,155.75,155.71,20.85751062]
[1748841564699,39.14,155.75,155.71,20.85751062]
[1748841565128,39.14,155.75,155.72,14.43531552]
[1748841565891,2.0,155.74,155.72,20.85683775]
[1748841566307,39.14,155.75,155.72,20.85683775]
[1748841566507,39.14,155.75,155.73,14.43531552]
[1748841567816,39.14,155.75,155.73,20.85635228]
[1748841569318,10.1,155.76,155.74,14.43531552]
[1748841569526,39.16,155.75,155.73,6.42103676]
[1748841570619,39.16,155.75,155.74,20.85627352]
[1748841572941,53.59531552,155.75,155.71,20.85751062]
[1748841573137,39.16,155.75,155.72,14.43531552]
[1748841574212,39.16,155.75,155.73,14.43531552]
[1748841575938,39.16,155.75,155.73,20.85663761]
[1748841579655,39.16,155.75,155.74,14.43531552]
[1748841581724,39.16,155.75,155.74,20.85627352]
[1748841585220,10.1,155.76,155.74,20.85627352]
[1748841585419,10.1,155.76,155.75,14.43531552]
[1748841585634,49.26,155.76,155.75,14.43531552]
[1748841586340,10.1,155.76,155.75,20.85586126]
[1748841586543,49.26,155.76,155.75,20.85586126]
[1748841586845,63.69531552,155.76,155.71,6.4221951]
[1748841587144,63.69531552,155.76,155.71,20.85751062]
[1748841587145,14.43531552,155.75,155.71,20.85751062]
[1748841587653,14.43531552,155.72,155.66,1.657]
[1748841587949,14.43531552,155.7,155.67,6.42384531]
[1748841588128,39.16,155.69,155.67,6.42384531]
[1748841589060,39.16,155.69,155.67,20.85916083]
[1748841589851,39.16,155.69,155.66,8.08113227]
[1748841590092,39.16,155.69,155.67,14.43531552]
[1748841590554,53.59531552,155.69,155.61,17.61192102]
[1748841590732,53.59531552,155.69,155.64,14.43531552]
[1748841591128,53.59531552,155.69,155.62,32.42590926]
[1748841591331,53.59531552,155.69,155.64,14.43531552]
[1748841591546,53.59531552,155.69,155.63,14.43531552]
[1748841591547,14.43531552,155.67,155.63,14.43531552]
[1748841591746,39.16,155.66,155.64,14.43531552]
[1748841592063,14.43531552,155.69,155.65,14.43531552]
[1748841592228,39.16,155.68,155.65,14.43531552]
[1748841592568,39.16,155.68,155.66,14.43531552]
[1748841592729,39.16,155.68,155.62,22.49068242]
[1748841592925,39.16,155.68,155.67,14.43531552]
[1748841593144,39.16,155.68,155.62,22.49068242]
[1748841593641,39.16,155.68,155.66,14.43531552]
[1748841595647,39.16,155.68,155.66,20.85951944]
[1748841596953,39.16,155.68,155.67,14.43531552]
[1748841597266,39.16,155.68,155.66,20.85951944]
[1748841597598,39.16,155.68,155.65,20.85987665]
[1748841598472,39.16,155.68,155.66,14.43531552]
[1748841599555,39.16,155.68,155.66,20.85949992]
[1748841600094,10.1,155.7,155.66,20.85949992]
[1748841600381,39.16,155.67,155.66,20.85949992]
[1748841601158,98.6487,155.75,155.66,20.85949992]
[1748841601159,10.1,155.71,155.66,36.92014491]
[1748841601374,39.16,155.7,155.66,16.06064499]
[1748841601574,39.16,155.7,155.69,14.43531552]
[1748841601970,39.16,155.7,155.66,16.06064499]
[1748841602172,39.16,155.7,155.69,14.43531552]
[1748841602372,10.1,155.71,155.69,14.43531552]
[1748841602562,10.1,155.71,155.7,14.43531552]
[1748841602756,49.28,155.71,155.7,14.43531552]
[1748841603583,10.1,155.71,155.7,20.85792309]
[1748841603969,92.46,155.75,155.7,36.91444203]
[1748841604173,92.46,155.75,155.74,14.43531552]
[1748841604381,141.74,155.75,155.7,6.42260757]
[1748841604576,2.0,155.74,155.71,14.43531552]
[1748841607863,2.0,155.74,155.72,14.43531552]
[1748841608066,2.0,155.74,155.71,6.42214088]
[1748841608266,2.0,155.74,155.72,14.43531552]
[1748841610103,2.0,155.74,155.71,14.43531552]
[1748841610591,14.43531552,155.73,155.68,22.36113442]
[1748841610776,14.43531552,155.73,155.68,20.85863442]
[1748841610975,14.43531552,155.73,155.69,14.43531552]
[1748841612475,16.43531552,155.74,155.7,14.43531552]
[1748841612792,2.0,155.74,155.7,14.43531552]
[1748841613206,2.0,155.74,155.71,14.43531552]
[1748841614809,2.0,155.74,155.7,14.43531552]
[1748841616111,22.85641386,155.74,155.7,14.43531552]
[1748841616275,22.85641386,155.74,155.69,14.43531552]
[1748841618011,22.85641386,155.74,155.68,6.42327723]
[1748841618012,14.43531552,155.73,155.68,14.43531552]
[1748841618212,14.43531552,155.72,155.68,14.43531552]
[1748841618401,39.16,155.71,155.68,14.43531552]
[1748841618601,10.1,155.7,155.68,14.43531552]
[1748841621590,10.1,155.7,155.64,15.93961552]
[1748841621816,14.43531552,155.67,155.63,14.43531552]
[1748841622118,39.16,155.66,155.62,20.86105996]
[1748841622319,24.53531552,155.65,155.6,7.9796562]
[1748841622495,24.53531552,155.65,155.6,22.41497172]
[1748841622817,24.53531552,155.65,155.6,6.4263562]
[1748841622991,24.53531552,155.65,155.6,20.86167172]
[1748841623422,30.96003816,155.65,155.6,20.86167172]
[1748841623608,30.96003816,155.65,155.61,14.43531552]
[1748841624114,24.53531552,155.65,155.61,14.43531552]
[1748841624504,30.96006112,155.65,155.61,14.43531552]
[1748841625202,16.5247456,155.65,155.61,14.43531552]
[1748841625406,30.96006112,155.65,155.61,14.43531552]
[1748841626502,10.1,155.65,155.61,20.8616292]
[1748841626823,24.53531552,155.65,155.61,14.43531552]
[1748841627909,30.96014755,155.65,155.61,14.43531552]
[1748841628117,179.86014755,155.65,155.61,14.43531552]
[1748841628511,173.43531552,155.65,155.61,14.43531552]
[1748841629239,159.0,155.65,155.62,14.43531552]
[1748841629411,173.43531552,155.65,155.61,14.43531552]
[1748841629600,179.86009597,155.65,155.61,14.43531552]
[1748841629916,173.43531552,155.65,155.61,14.43531552]
[1748841630801,159.0,155.65,155.62,14.43531552]
[1748841631601,159.0,155.65,155.61,20.86154691]
[1748841634645,179.86004794,155.65,155.61,14.43531552]
[1748841634939,159.0,155.65,155.62,14.43531552]
[1748841635169,159.0,155.65,155.64,14.43531552]
[1748841635432,198.2,155.65,155.64,14.43531552]
[1748841635799,198.2,155.65,155.63,14.43531552]
[1748841636440,198.2,155.65,155.64,14.43531552]
[1748841637241,10.1,155.65,155.64,20.86039904]
[1748841637525,39.2,155.65,155.64,20.86039904]
[1748841637829,10.1,155.69,155.64,20.86039904]
[1748841638034,39.2,155.66,155.64,6.42508352]
[1748841638236,10.1,155.69,155.66,6.42425799]
[1748841638525,10.1,155.69,155.68,15.98661552]
[1748841638526,49.32,155.69,155.68,15.98661552]
[1748841640023,49.32,155.69,155.68,22.4100482]
[1748841640911,10.1,155.69,155.68,22.4100482]
[1748841641110,49.3,155.69,155.68,22.4100482]
[1748841641905,10.1,155.73,155.68,52.90394542]
[1748841642126,10.1,155.73,155.72,20.8570982]
[1748841642327,49.32,155.73,155.72,20.8570982]
[1748841642830,10.1,155.73,155.72,20.8570982]
[1748841643143,49.32,155.73,155.72,20.8570982]
[1748841643450,49.32,155.73,155.71,20.85741776]
[1748841644445,49.32,155.73,155.72,14.43531552]
[1748841648127,49.32,155.73,155.71,6.42210224]
[1748841648329,49.32,155.73,155.72,14.43531552]
[1748841648514,49.32,155.73,155.7,6.42255668]
[1748841648707,49.32,155.73,155.71,14.43531552]
[1748841649111,10.1,155.73,155.72,14.43531552]
[1748841649311,49.28,155.73,155.72,14.43531552]
[1748841650735,49.28,155.73,155.72,20.8570982]
[1748841652537,49.26,155.73,155.72,20.8570982]
[1748841656033,148.9,155.78,155.72,36.91155491]
[1748841656341,39.16,155.77,155.76,14.43531552]
[1748841656950,39.16,155.77,155.76,20.85544905]
[1748841657655,39.16,155.77,155.76,14.43531552]
[1748841657836,39.16,155.77,155.75,14.43531552]
[1748841658039,39.16,155.77,155.74,20.85611153]
[1748841658827,39.16,155.77,155.75,14.43531552]
[1748841659534,39.16,155.77,155.76,14.43531552]
[1748841662227,39.16,155.77,155.75,14.43531552]
[1748841662749,39.16,155.77,155.75,20.85583082]
[1748841663256,39.16,155.77,155.76,14.43531552]
[1748841664047,39.16,155.77,155.75,20.85585448]
[1748841664364,39.16,155.77,155.75,14.43531552]
[1748841664862,39.16,155.77,155.74,20.8561149]
[1748841665189,39.16,155.77,155.76,14.43531552]
[1748841666345,39.16,155.77,155.74,14.43531552]
[1748841666958,39.16,155.77,155.69,1.6279]
[1748841666959,14.43531552,155.75,155.69,1.6279]
[1748841667156,14.43531552,155.73,155.69,1.6279]
[1748841667451,10.1,155.72,155.68,14.43531552]
[1748841667756,39.16,155.71,155.68,14.43531552]
[1748841668140,39.16,155.71,155.69,6.42291093]
[1748841668942,39.16,155.71,155.68,20.85858845]
[1748841669147,39.16,155.71,155.68,6.42327293]
[1748841669637,53.59531552,155.71,155.67,20.85901419]
[1748841669836,53.59531552,155.71,155.67,6.42369867]
[1748841670236,53.59531552,155.71,155.66,20.85957351]
[1748841672630,53.59531552,155.71,155.67,14.43531552]
[1748841673662,53.59531552,155.71,155.67,20.85905891]
[1748841674640,60.01774996,155.71,155.66,20.85948371]
[1748841675047,14.43531552,155.7,155.65,8.01292558]
[1748841675266,14.43531552,155.7,155.66,14.43531552]
[1748841677852,53.59531552,155.71,155.67,14.43531552]
[1748841678236,53.59531552,155.71,155.67,20.85904597]
[1748841678679,39.16,155.71,155.67,20.85904597]
[1748841678840,39.16,155.7,155.68,14.43531552]
[1748841680755,24.53531552,155.72,155.68,20.85866557]
[1748841680978,39.16,155.69,155.68,20.85866557]
[1748841682676,39.16,155.69,155.66,6.42425799]
[1748841682978,39.16,155.69,155.68,14.43531552]
[1748841683980,39.16,155.69,155.67,14.43531552]
[1748841685282,39.16,155.69,155.67,20.85914022]
[1748841686168,39.16,155.69,155.66,6.42425799]
[1748841686379,39.16,155.69,155.67,14.43531552]
[1748841687678,39.16,155.69,155.66,20.85957351]
[1748841687882,39.16,155.69,155.65,22.44817969]
[1748841688091,39.16,155.69,155.65,14.43531552]
[1748841688092,60.01849106,155.69,155.65,14.43531552]
[1748841688975,45.58317554,155.69,155.65,14.43531552]
[1748841690290,60.01849106,155.69,155.64,14.43531552]
[1748841690588,14.43531552,155.68,155.64,14.43531552]
[1748841690762,10.1,155.67,155.64,14.43531552]
[1748841690958,39.16,155.66,155.64,14.43531552]
[1748841692476,39.16,155.66,155.65,14.43531552]
[1748841693469,10.1,155.67,155.65,14.43531552]
[1748841693671,10.1,155.67,155.66,14.43531552]
[1748841693895,10.1,155.67,155.66,16.03281552]
[1748841694277,159.0,155.71,155.66,16.03281552]
[1748841694480,39.18,155.7,155.69,14.43531552]
[1748841695884,10.1,155.71,155.69,14.43531552]
[1748841696089,10.1,155.71,155.7,14.43531552]
[1748841696274,49.28,155.71,155.7,14.43531552]
[1748841696985,10.1,155.71,155.7,20.85792309]
[1748841697194,49.28,155.71,155.7,20.85792309]
[1748841697581,27.84998623,155.78,155.7,20.85792309]
[1748841697582,22.01304668,155.76,155.7,20.85792309]
[1748841697897,49.26,155.75,155.72,14.43531552]
[1748841698107,10.1,155.75,155.73,14.43531552]
[1748841698277,39.16,155.74,155.73,14.43531552]
[1748841698704,10.1,155.75,155.73,20.85644264]
[1748841698997,39.16,155.74,155.73,20.85644264]
[1748841699791,10.1,155.75,155.73,20.85644264]
[1748841699975,10.1,155.75,155.74,14.43531552]
[1748841700299,61.17304668,155.76,155.74,14.43531552]
[1748841700592,61.17304668,155.76,155.75,14.43531552]
[1748841700976,61.17304668,155.76,155.75,20.85586126]
[1748841701179,39.16,155.76,155.75,20.85586126]
[1748841705788,39.16,155.76,155.74,14.43531552]
[1748841706193,39.16,155.76,155.75,14.43531552]
[1748841711593,39.16,155.76,155.74,14.43531552]
[1748841711912,39.16,155.76,155.73,14.43531552]
[1748841712287,14.43531552,155.75,155.7,6.42223527]
[1748841712487,10.1,155.74,155.71,14.43531552]
[1748841712702,10.1,155.74,155.7,14.43531552]
[1748841712703,39.24,155.73,155.7,14.43531552]
[1748841713702,39.24,155.73,155.7,20.85790366]
[1748841714209,39.24,155.73,155.72,14.43531552]
[1748841714814,39.24,155.73,155.7,6.42258814]
[1748841714989,39.24,155.73,155.71,14.43531552]
[1748841716500,39.24,155.73,155.7,14.43531552]
[1748841717115,39.24,155.73,155.69,6.4230201]
[1748841717416,39.24,155.73,155.7,14.43531552]
[1748841717730,39.24,155.73,155.71,14.43531552]
[1748841718516,39.24,155.73,155.72,14.43531552]
[1748841718699,39.24,155.73,155.72,20.8570982]
[1748841719410,39.24,155.73,155.72,6.42178268]
[1748841719605,39.24,155.73,155.71,14.43531552]
[1748841720303,39.24,155.73,155.69,25.07266896]
[1748841720496,39.24,155.73,155.71,14.43531552]
[1748841720906,39.24,155.73,155.71,20.85740973]
[1748841721608,39.24,155.73,155.72,14.43531552]
[1748841721925,10.1,155.74,155.72,14.43531552]
[1748841722106,10.1,155.74,155.71,6.42209421]
[1748841722107,39.28,155.73,155.71,14.43531552]
[1748841722603,39.28,155.73,155.69,14.43531552]
[1748841722792,14.43531552,155.72,155.68,48.44818979]
[1748841723214,14.43531552,155.72,155.68,34.01287427]
[1748841723411,14.43531552,155.72,155.68,22.44818979]
[1748841723620,53.71531552,155.73,155.69,14.43531552]
[1748841724424,53.71531552,155.73,155.7,14.43531552]
[1748841724425,39.28,155.73,155.7,14.43531552]
[1748841724799,10.1,155.74,155.71,20.85712398]
[1748841725111,49.4,155.74,155.72,14.43531552]
[1748841726501,49.4,155.74,155.72,20.85702697]
[1748841726836,49.4,155.74,155.73,14.43531552]
[1748841728202,10.1,155.74,155.73,14.43531552]
[1748841729124,10.1,155.74,155.73,20.85668584]
[1748841731818,148.9,155.8,155.73,20.85668584]
[1748841732025,10.1,155.78,155.77,14.43531552]
[1748841733100,10.1,155.78,155.76,14.43531552]
[1748841733801,10.1,155.78,155.75,20.85559707]
[1748841734118,24.53531552,155.78,155.74,14.43531552]
[1748841734827,10.1,155.78,155.74,14.43531552]
[1748841735027,10.1,155.78,155.77,14.43531552]
[1748841735200,49.42,155.78,155.77,14.43531552]
[1748841735708,49.42,155.78,155.74,6.420958]
[1748841735925,49.42,155.78,155.76,14.43531552]
[1748841737599,49.42,155.78,155.77,14.43531552]
[1748841738624,49.42,155.78,155.76,14.43531552]
[1748841738832,49.42,155.78,155.75,20.85571768]
[1748841739906,49.42,155.78,155.74,6.420958]
[1748841740106,14.43531552,155.77,155.73,14.43531552]
[1748841740814,70.27472489,155.78,155.74,14.43531552]
[1748841741209,63.85531552,155.78,155.74,14.43531552]
[1748841742127,63.85531552,155.78,155.74,20.85618007]
[1748841743036,63.85531552,155.78,155.74,14.43531552]
[1748841748038,63.85531552,155.78,155.74,20.85627211]
[1748841748232,63.85531552,155.78,155.74,14.43531552]
[1748841748415,70.27470906,155.78,155.74,14.43531552]
[1748841749825,70.27470906,155.78,155.73,14.43531552]
[1748841752545,70.27470906,155.78,155.73,20.85666156]
[1748841753543,14.43531552,155.76,155.72,14.43531552]
[1748841753721,14.43531552,155.74,155.7,22.46836033]
[1748841753924,14.43531552,155.74,155.69,20.85816847]
[1748841754126,14.43531552,155.74,155.67,20.27904886]
[1748841754127,24.63531552,155.73,155.68,20.85858603]
[1748841754347,39.26,155.72,155.68,46.85858603]
[1748841755839,39.26,155.72,155.68,20.85858603]
[1748841757343,39.26,155.72,155.69,14.43531552]
[1748841757543,39.28,155.72,155.71,14.43531552]
[1748841758039,39.28,155.72,155.7,14.43531552]
[1748841759442,39.28,155.72,155.69,14.43531552]
[1748841760518,39.28,155.72,155.7,14.43531552]
[1748841761233,39.28,155.72,155.71,14.43531552]
[1748841763234,49.46,155.73,155.71,20.85751062]
[1748841763435,49.46,155.73,155.72,14.43531552]
[1748841764752,49.46,155.73,155.72,20.8570982]
[1748841765152,49.46,155.73,155.71,20.85737065]
[1748841768053,39.26,155.73,155.71,20.85737065]
[1748841769155,39.26,155.73,155.68,16.05854495]
[1748841769350,53.69531552,155.73,155.69,6.4230201]
[1748841769532,53.69531552,155.73,155.69,20.85833562]
[1748841770531,39.26,155.73,155.69,20.85833562]
[1748841771953,39.26,155.73,155.71,14.43531552]
[1748841772174,53.69531552,155.73,155.69,6.4230201]
[1748841773668,39.26,155.73,155.72,14.43531552]
[1748841773954,39.26,155.73,155.71,14.43531552]
[1748841774139,39.26,155.73,155.72,14.43531552]
[1748841774778,10.2,155.75,155.72,14.43531552]
[1748841775055,39.36,155.74,155.72,20.85686216]
[1748841775941,39.34,155.74,155.72,20.85686216]
[1748841776767,10.2,155.75,155.73,14.43531552]
[1748841776975,39.36,155.74,155.73,20.85668584]
[1748841777138,10.2,155.75,155.73,20.85668584]
[1748841777336,49.56,155.75,155.73,20.85668584]
[1748841778166,49.56,155.75,155.73,6.42137032]
[1748841780263,10.2,155.75,155.73,6.42137032]
[1748841780555,39.34,155.74,155.73,6.42137032]
[1748841781668,10.2,155.75,155.73,6.42137032]
[1748841781842,39.32,155.74,155.73,6.42137032]
[1748841782050,10.2,155.75,155.73,20.85668584]
[1748841782366,10.2,155.75,155.74,14.43531552]
[1748841782566,10.2,155.75,155.74,20.85627352]
[1748841782759,10.16,155.79,155.74,36.90866853]
[1748841782952,10.16,155.79,155.78,14.43531552]
[1748841783260,49.5,155.79,155.78,14.43531552]
[1748841784657,49.5,155.79,155.78,20.8546248]
[1748841785169,10.16,155.79,155.78,20.8546248]
[1748841785350,49.48,155.79,155.78,20.8546248]
[1748841788948,10.16,155.79,155.78,20.8546248]
[1748841791770,39.28,155.8,155.78,20.8546248]
[1748841791984,39.28,155.8,155.79,14.43531552]
[1748841792182,10.16,155.83,155.79,14.43531552]
[1748841792481,39.28,155.82,155.81,14.43531552]
[1748841793597,10.16,155.83,155.81,14.43531552]
[1748841793752,10.16,155.83,155.78,20.30254886]
[1748841793753,39.28,155.82,155.78,20.30254886]
[1748841793951,39.28,155.82,155.81,20.85338881]
[1748841798066,10.16,155.83,155.81,20.85338881]
[1748841798285,10.16,155.83,155.82,14.43531552]
[1748841798488,49.42,155.83,155.82,14.43531552]
[1748841798981,39.26,155.84,155.82,33.08496438]
[1748841799168,39.26,155.85,155.82,33.08496438]
[1748841799377,14.43531552,155.83,155.74,1.5932]
[1748841799580,14.43531552,155.78,155.74,1.5932]
[1748841799758,39.26,155.77,155.74,1.5932]
[1748841799972,39.26,155.77,155.73,14.43531552]
[1748841800383,39.26,155.77,155.73,20.85658789]
[1748841800777,53.69531552,155.77,155.73,20.85658789]
[1748841801678,60.11504538,155.77,155.72,59.08496438]
[1748841802261,60.11504538,155.77,155.72,65.50669318]
[1748841805793,60.11504538,155.77,155.73,14.43531552]
[1748841805974,39.26,155.77,155.74,14.43531552]
[1748841806373,6.41858917,155.8,155.76,14.43531552]
[1748841806571,49.42,155.79,155.76,14.43531552]
[1748841807671,10.16,155.79,155.76,14.43531552]
[1748841807895,39.26,155.78,155.76,14.43531552]
[1748841808482,10.16,155.79,155.76,14.43531552]
[1748841808483,39.24,155.77,155.76,14.43531552]
[1748841811910,39.24,155.77,155.76,4.43531552]
[1748841812214,39.24,155.77,155.76,10.85544905]
[1748841812384,10.16,155.79,155.76,10.85544905]
[1748841812699,39.22,155.78,155.77,14.43531552]
[1748841813075,39.22,155.78,155.76,20.85544905]
[1748841813706,10.16,155.79,155.76,20.85544905]
[1748841813905,39.22,155.78,155.76,20.85544905]
[1748841814493,39.22,155.78,155.77,14.43531552]
[1748841816199,39.22,155.78,155.76,20.85544905]
[1748841823102,39.22,155.78,155.77,20.8550369]
[1748841824283,39.22,155.78,155.73,16.05299784]
[1748841824484,39.22,155.78,155.75,14.43531552]
[1748841825085,39.22,155.78,155.75,20.85570439]
[1748841825285,53.65531552,155.78,155.74,20.85617899]
[1748841825489,39.22,155.78,155.73,20.85656207]
[1748841825694,14.43531552,155.77,155.73,20.85656207]
[1748841826588,53.65531552,155.78,155.73,20.85656207]
[1748841827711,14.43531552,155.77,155.73,6.42124655]
[1748841827917,39.22,155.78,155.71,6.4221951]
[1748841827918,14.43531552,155.74,155.71,6.4221951]
[1748841828210,39.18,155.73,155.71,20.85751062]
[1748841828519,39.18,155.72,155.71,6.4221951]
[1748841829410,39.18,155.72,155.71,25.07184396]
[1748841829705,39.18,155.72,155.71,39.50715948]
[1748841829885,39.18,155.74,155.72,18.64964886]
[1748841830086,39.18,155.74,155.73,14.43531552]
[1748841831923,39.18,155.74,155.73,20.85668584]
[1748841833100,39.2,155.74,155.73,20.85668584]
[1748841838226,39.2,155.74,155.73,6.42137032]
[1748841838514,39.2,155.74,155.73,20.85668584]
[1748841839389,39.2,155.74,155.73,6.42137032]
[1748841839594,39.2,155.74,155.73,20.85668584]
[1748841841620,39.2,155.74,155.73,6.42137032]
[1748841842017,39.2,155.74,155.73,20.85668584]
[1748841845531,10.16,155.79,155.74,18.64964886]
[1748841845823,39.18,155.78,155.76,14.43531552]
[1748841846417,39.18,155.78,155.77,6.41972138]
[1748841847511,10.16,155.79,155.77,6.41972138]
[1748841847711,39.18,155.78,155.77,6.41972138]
[1748841850010,10.16,155.79,155.77,6.41972138]
[1748841850211,24.59531552,155.79,155.76,6.42013353]
[1748841850508,39.18,155.78,155.76,6.42013353]
[1748841852209,39.16,155.77,155.76,6.42013353]
[1748841855441,39.16,155.77,155.76,20.85544905]
[1748841856237,10.16,155.79,155.76,20.85544905]
[1748841856438,39.16,155.77,155.76,20.85544905]
[1748841857311,61.39843,155.77,155.76,9.28063791]
[1748841857719,61.39843,155.77,155.75,31.75239874]
[1748841858140,61.39843,155.77,155.75,6.42054574]
[1748841858333,39.16,155.76,155.75,6.42054574]
[1748841859273,39.16,155.76,155.73,6.42137032]
[1748841860349,39.16,155.76,155.73,15.70200823]
[1748841860666,39.16,155.76,155.74,9.28063791]
[1748841861342,39.16,155.76,155.74,14.50469261]
[1748841861736,39.16,155.76,155.75,6.42054574]
[1748841861959,39.16,155.76,155.75,20.92523835]